bitfinex/quotes_ETHUSD_20260304
["timestamp","ask_amount","ask_price","bid_price","bid_amount"]
[1772608322099,2.31292028,1977.7,1977.3,4.98078727]
[1772608322597,2.31292028,1977.7,1977.3,3.71643968]
[1772608322802,0.002,1977.9,1977.4,3.71543968]
[1772608324117,0.002,1977.9,1977.6,3.71543968]
[1772608324624,2.2961855,1977.9,1977.6,3.71543968]
[1772608326216,2.2961855,1977.9,1977.6,4.97957867]
[1772608326417,2.2961855,1977.9,1977.6,3.71543968]
[1772608327018,2.2961855,1977.9,1977.6,4.97959508]
[1772608327212,2.2961855,1977.9,1977.6,3.71543968]
[1772608327606,2.2961855,1977.9,1977.4,3.71543968]
[1772608327801,2.26645578,1977.8,1977.4,3.71543968]
[1772608329111,2.26645578,1977.8,1977.5,3.71543968]
[1772608329325,2.25018543,1977.9,1977.5,3.71543968]
[1772608330206,3.51415377,1977.9,1977.5,3.71543968]
[1772608331223,2.23012371,1977.8,1977.5,3.71543968]
[1772608333516,0.002,1977.7,1977.5,3.71543968]
[1772608336339,2.18783442,1977.7,1977.4,0.001]
[1772608337254,2.18783442,1977.7,1977.4,4.98072014]
[1772608337750,0.002,1977.7,1977.5,3.71543968]
[1772608338447,3.43199823,1977.7,1977.4,0.001]
[1772608338624,2.16588665,1977.6,1977.4,0.001]
[1772608338825,2.16588665,1977.6,1977.4,1.26528316]
[1772608339039,2.15929625,1977.7,1977.4,1.26528316]
[1772608339453,2.15929625,1977.7,1977.4,0.001]
[1772608339656,2.15929625,1977.7,1977.4,3.24676346]
[1772608339821,2.15929625,1977.7,1977.5,3.24576346]
[1772608339822,0.002,1977.7,1977.5,3.24576346]
[1772608340657,2.1482508,1977.7,1977.4,4.55606544]
[1772608341356,0.002,1977.7,1977.4,4.55606544]
[1772608341553,2.13977204,1977.7,1977.4,4.55606544]
[1772608341848,2.13977204,1977.7,1977.4,3.29178232]
[1772608342049,2.13977204,1977.7,1977.4,4.55606443]
[1772608342251,2.13977204,1977.7,1977.4,3.29178232]
[1772608342419,3.40389555,1977.7,1977.4,3.29178232]
[1772608342625,2.12936232,1977.6,1977.4,0.001]
[1772608343024,2.1229708,1977.7,1977.4,0.001]
[1772608343253,3.38706774,1977.7,1977.4,0.001]
[1772608343451,2.1229708,1977.7,1977.4,0.001]
[1772608343658,3.38707461,1977.7,1977.4,0.001]
[1772608343946,2.1229708,1977.7,1977.4,0.001]
[1772608344548,3.38706693,1977.7,1977.4,0.001]
[1772608345343,2.10431786,1977.6,1977.4,0.001]
[1772608346436,2.10431786,1977.6,1977.5,0.001]
[1772608346848,2.10631786,1977.6,1977.5,0.001]
[1772608349356,2.07150909,1977.5,1977.4,0.001]
[1772608349546,2.07150909,1977.5,1977.2,3.29178232]
[1772608349547,2.07150909,1977.5,1977.2,0.001]
[1772608349750,2.07150909,1977.5,1976.6,2.99777155]
[1772608349751,2.07050909,1977.4,1976.6,2.99777155]
[1772608350055,2.07050909,1977.4,1976.7,3.29078232]
[1772608350760,2.06350425,1977.1,1976.7,3.29078232]
[1772608351433,2.06350425,1977.1,1976.8,3.29078232]
[1772608352445,3.32798455,1977.1,1976.8,3.29078232]
[1772608352645,0.001,1976.9,1976.8,3.29078232]
[1772608354456,2.03153274,1976.9,1976.7,1.26472978]
[1772608354649,0.001,1976.8,1976.6,4.55553285]
[1772608354964,0.001,1976.8,1976.6,3.29078232]
[1772608356364,0.001,1976.8,1976.7,3.29078232]
[1772608358658,1.99923616,1977.0,1976.7,3.29078232]
[1772608358864,0.001,1976.8,1976.7,3.29078232]
[1772608359467,0.001,1976.8,1976.6,4.55556958]
[1772608359638,0.001,1976.8,1976.7,3.29078232]
[1772608359838,0.001,1976.8,1976.7,3.29178232]
[1772608364081,0.001,1976.8,1976.7,0.001]
[1772608365472,0.001,1976.8,1976.7,3.29178232]
[1772608366546,0.001,1976.8,1976.7,0.001]
[1772608367397,1.92016242,1976.8,1976.2,3.29078232]
[1772608367598,1.92016242,1976.8,1976.2,4.55583591]
[1772608367955,1.92016242,1976.8,1976.3,3.29078232]
[1772608368795,0.001,1976.6,1976.3,3.29078232]
[1772608370266,1.88899209,1976.6,1976.3,3.29078232]
[1772608370767,0.001,1976.4,1976.3,3.29078232]
[1772608370996,0.001,1976.4,1976.2,3.30635426]
[1772608371804,0.001,1976.4,1976.1,1.26511672]
[1772608371805,1.8799376,1976.4,1976.1,3.30635426]
[1772608372089,1.8799376,1976.4,1976.0,3.30635426]
[1772608373004,0.001,1976.2,1976.0,3.30635426]
[1772608373299,0.001,1976.2,1975.9,1.26524282]
[1772608373300,1.86193726,1976.2,1975.9,3.30635426]
[1772608374488,1.86193726,1976.2,1976.1,0.001]
[1772608374873,0.001,1976.2,1976.1,3.30735426]
[1772608375198,1.84417677,1976.5,1976.2,3.30635426]
[1772608376302,0.001,1976.4,1976.2,3.30635426]
[1772608377004,0.001,1976.4,1976.2,4.57139823]
[1772608377186,0.001,1976.4,1976.3,3.30635426]
[1772608377709,1.82762722,1976.4,1976.1,0.001]
[1772608378194,0.001,1976.2,1976.1,3.30735426]
[1772608379103,0.001,1976.2,1976.1,4.57247242]
[1772608379398,0.001,1976.2,1976.1,3.30735426]
[1772608379903,0.001,1976.2,1976.1,4.57247242]
[1772608381503,0.001,1976.2,1976.1,3.30735426]
[1772608381877,0.001,1976.2,1976.1,0.001]
[1772608382082,1.78461145,1976.2,1976.1,0.001]
[1772608382380,1.78461145,1976.2,1975.7,3.30848907]
[1772608382691,1.78461145,1976.2,1975.7,4.5738545]
[1772608383079,1.77418968,1976.1,1975.7,4.57385782]
[1772608384292,0.001,1975.9,1975.7,4.57385782]
[1772608384500,1.76678271,1975.9,1975.7,0.00213481]
[1772608385102,0.001,1975.9,1975.7,3.30848907]
[1772608385616,0.001,1975.9,1975.8,3.30635426]
[1772608386188,1.75742306,1976.2,1975.8,3.30535426]
[1772608386804,1.75742306,1976.2,1975.7,1.26750183]
[1772608386805,3.01504281,1976.4,1976.0,3.30735426]
[1772608386989,1.75011348,1976.4,1976.0,3.30735426]
[1772608387390,1.75011348,1976.4,1976.1,3.30635426]
[1772608387886,3.01504128,1976.4,1976.1,3.30635426]
[1772608388087,2.23368506,1976.3,1976.0,0.001]
[1772608388282,1.73368506,1976.2,1976.0,0.001]
[1772608388987,1.73368506,1976.2,1975.7,3.30848907]
[1772608389922,1.71642286,1976.1,1975.7,4.57385983]
[1772608391534,1.71642286,1976.1,1975.7,3.30848907]
[1772608391738,2.20836156,1976.3,1975.8,3.30635426]
[1772608392407,2.20836156,1976.3,1975.9,3.30635426]
[1772608392790,3.47335875,1976.3,1975.9,3.30635426]
[1772608393610,1.69233571,1976.2,1975.9,3.30635426]
[1772608394196,1.69233571,1976.2,1975.8,4.57161388]
[1772608394396,1.69233571,1976.2,1975.9,3.30635426]
[1772608394602,3.44939143,1976.3,1975.9,3.30635426]
[1772608394803,2.18439411,1976.3,1975.9,3.30635426]
[1772608395024,0.5,1976.3,1975.9,3.30635426]
[1772608395596,0.40703931,1976.3,1976.0,3.30635426]
[1772608396421,0.40703931,1976.3,1976.2,3.30635426]
[1772608398423,2.91993302,1976.7,1976.3,3.10540077]
[1772608399128,2.01403687,1976.6,1976.3,3.10540077]
[1772608401403,0.002,1976.7,1976.4,3.0971899]
[1772608401842,0.002,1977.0,1976.8,3.0971899]
[1772608403908,1.98254951,1976.9,1976.6,3.0971899]
[1772608405033,1.98254951,1976.9,1976.4,4.36206499]
[1772608405238,1.98254951,1976.9,1976.4,3.0971899]
[1772608406132,1.96094171,1976.8,1976.4,3.0971899]
[1772608406520,1.96094171,1976.8,1976.4,4.36210988]
[1772608409431,1.96094171,1976.8,1976.5,3.0971899]
[1772608410947,3.19216127,1977.0,1976.6,3.0971899]
[1772608411244,3.19211951,1977.0,1976.6,3.0971899]
[1772608411423,1.92556952,1976.9,1976.6,3.0971899]
[1772608414036,1.90480122,1976.8,1976.4,3.0971899]
[1772608414442,1.90680122,1976.8,1976.4,3.0971899]
[1772608414612,1.90680122,1976.8,1976.4,4.36210957]
[1772608414927,1.90680122,1976.8,1976.3,0.001]
[1772608415133,1.89797249,1976.6,1976.3,0.001]
[1772608416938,1.8843653,1976.7,1976.3,3.0981899]
[1772608417138,3.1491,1976.7,1976.3,3.0981899]
[1772608417637,0.002,1976.8,1976.4,3.0971899]
[1772608419223,0.002,1976.8,1976.6,3.0971899]
[1772608420225,1.8661889,1976.8,1976.4,4.36206886]
[1772608420443,1.8661889,1976.8,1976.5,3.0971899]
[1772608420744,0.002,1976.8,1976.5,3.0971899]
[1772608421219,0.002,1976.8,1976.6,3.0971899]
[1772608423353,0.002,1976.8,1976.5,3.0971899]
[1772608424050,1.828448,1976.8,1976.5,3.0971899]
[1772608425024,1.828448,1976.8,1976.5,4.3620499]
[1772608425243,1.828448,1976.8,1976.5,3.0971899]
[1772608425545,1.828448,1976.8,1976.5,4.36204854]
[1772608426050,0.002,1976.8,1976.6,3.0971899]
[1772608427225,0.002,1976.8,1976.7,0.001]
[1772608427627,0.002,1976.8,1976.7,3.0981899]
[1772608436255,0.002,1976.8,1976.7,0.001]
[1772608436844,0.002,1976.8,1976.7,3.0726031]
[1772608437150,0.002,1977.0,1976.8,3.0716031]
[1772608438864,0.002,1977.0,1976.8,4.336273]
[1772608439581,0.002,1977.0,1976.8,3.0716031]
[1772608440070,0.002,1977.0,1976.8,4.33626625]
[1772608440769,0.002,1976.9,1976.8,4.33626625]
[1772608440971,0.002,1976.9,1976.8,3.0716031]
[1772608441169,0.002,1976.9,1976.8,4.33627327]
[1772608441735,0.002,1976.9,1976.7,0.001]
[1772608441736,0.002,1976.9,1976.7,4.3373343]
[1772608441950,0.002,1976.9,1976.7,0.001]
[1772608441951,1.65109623,1976.9,1976.7,0.001]
[1772608442268,2.91572064,1976.9,1976.7,0.001]
[1772608443673,1.7785168,1976.9,1976.5,0.001]
[1772608443970,1.64014025,1976.8,1976.5,0.001]
[1772608444280,1.63124689,1976.7,1976.5,0.001]
[1772608446364,2.89601872,1976.7,1976.5,0.001]
[1772608446863,2.89598266,1976.7,1976.5,0.001]
[1772608447266,1.63124689,1976.7,1976.5,0.001]
[1772608447466,2.8959886,1976.7,1976.5,0.001]
[1772608447966,1.63124689,1976.7,1976.5,0.001]
[1772608449467,1.58968067,1976.9,1976.5,3.0726031]
[1772608449781,0.002,1976.9,1976.5,3.0726031]
[1772608450657,0.002,1976.9,1976.6,3.0716031]
[1772608452172,0.002,1976.8,1976.6,3.0726031]
[1772608452877,0.002,1976.8,1976.7,3.0716031]
[1772608455479,0.002,1976.9,1976.8,3.0716031]
[1772608455694,0.00108341,1977.0,1976.7,1.26473415]
[1772608455872,0.00108341,1977.0,1976.8,3.0716031]
[1772608456951,0.00108341,1977.0,1976.9,0.001]
[1772608457885,0.00108341,1977.0,1976.9,3.0726031]
[1772608458979,8.341e-05,1977.0,1976.9,3.0716031]
[1772608462289,1.47637614,1977.0,1976.6,4.12639207]
[1772608462491,1.47637614,1977.0,1976.7,2.86059394]
[1772608463684,1.47637614,1977.0,1976.6,0.001]
[1772608463984,1.47637614,1977.0,1976.6,2.86159394]
[1772608464288,2.7254051,1976.9,1976.6,2.86159394]
[1772608464490,2.7274051,1976.9,1976.6,2.86159394]
[1772608464689,2.7274051,1976.9,1976.6,0.001]
[1772608465178,2.7274051,1976.9,1976.7,0.001]
[1772608467872,1.4379197,1976.8,1976.6,0.001]
[1772608469693,1.26473415,1976.7,1976.6,0.001]
[1772608469988,1.42196251,1976.7,1976.6,0.001]
[1772608470693,1.41652505,1976.9,1976.6,0.001]
[1772608470874,0.002,1976.9,1976.6,2.86159394]
[1772608471866,0.002,1976.9,1976.7,2.86059394]
[1772608474689,0.002,1976.9,1976.8,2.86059394]
[1772608476899,0.002,1976.9,1976.8,2.86159394]
[1772608479794,8.341e-05,1977.0,1976.7,2.86059394]
[1772608484600,1.29768282,1977.0,1976.7,2.86059394]
[1772608484803,1.29759941,1976.8,1976.5,2.86159394]
[1772608485614,1.29076546,1977.0,1976.5,2.86159394]
[1772608485807,2.55528825,1976.9,1976.5,2.86159394]
[1772608487610,1.27699355,1976.8,1976.5,2.86159394]
[1772608487806,1.26473415,1976.7,1976.5,2.86159394]
[1772608489514,1.26473415,1976.7,1976.6,0.001]
[1772608489704,1.26473415,1976.7,1976.5,2.80259394]
[1772608491312,1.45480889,1976.6,1976.4,0.001]
[1772608491612,1.26473415,1976.7,1976.4,2.86373456]
[1772608492399,2.71735471,1976.7,1976.4,2.86373456]
[1772608492719,1.45262056,1976.6,1976.4,0.001]
[1772608494389,1.26486213,1976.5,1976.4,0.001]
[1772608495816,1.26486213,1976.5,1976.3,2.86373456]
[1772608496199,1.26477001,1976.7,1976.3,2.86373456]
[1772608496404,3.33471058,1976.8,1976.4,2.86273456]
[1772608498923,4.74307402,1976.8,1976.4,2.86273456]
[1772608499124,1.40836344,1976.7,1976.4,2.86273456]
[1772608499491,1.40836344,1976.7,1976.3,2.86373456]
[1772608500024,2.67316157,1976.6,1976.3,2.86373456]
[1772608500611,1.40217463,1976.5,1976.1,2.86273456]
[1772608500998,1.40217463,1976.5,1975.7,0.00213481]
[1772608500999,1.39601344,1976.3,1975.9,2.86273456]
[1772608501803,3.3369836,1976.4,1975.9,2.86273456]
[1772608502100,1.2649836,1976.4,1976.0,2.86273456]
[1772608502308,1.26476739,1976.7,1976.3,2.86273456]
[1772608502533,1.38991752,1976.6,1976.2,0.001]
[1772608503207,0.5,1976.5,1976.2,2.86373456]
[1772608505037,0.40059792,1976.5,1976.3,2.86273456]
[1772608505205,1.3737351,1976.8,1976.3,2.86273456]
[1772608505206,2.075,1976.7,1976.3,2.86273456]
[1772608506424,3.85606466,1976.7,1976.3,2.86273456]
[1772608506636,1.78106466,1976.6,1976.2,0.001]
[1772608506932,3.04592679,1976.5,1976.2,0.001]
[1772608507423,1.77537234,1976.4,1976.1,2.86273456]
[1772608509006,1.26499013,1976.3,1975.8,2.86273456]
[1772608510206,3.02347228,1976.3,1975.8,2.86273456]
[1772608512037,3.02347228,1976.3,1975.9,2.86273456]
[1772608512338,3.01231701,1976.4,1975.9,2.86273456]
[1772608513836,1.74181415,1976.3,1975.9,2.86373456]
[1772608515415,1.26505414,1976.2,1975.9,2.86373456]
[1772608515612,1.26505414,1976.2,1975.8,0.001]
[1772608515613,1.83024474,1976.1,1975.7,2.86486937]
[1772608517025,2.42766328,1976.4,1975.8,2.86273456]
[1772608517335,0.002,1976.4,1975.8,2.86273456]
[1772608517640,0.002,1976.4,1976.0,2.86273456]
[1772608519752,0.002,1976.4,1976.1,2.92527061]
[1772608521540,0.002,1976.5,1976.1,2.86084724]
[1772608521856,0.002,1976.5,1976.2,2.86184724]
[1772608522749,0.001,1976.4,1976.2,2.86184724]
[1772608523466,0.002,1976.7,1976.2,2.86184724]
[1772608524063,0.002,1976.7,1976.3,1.26499013]
[1772608524273,0.002,1976.7,1976.4,2.86184724]
[1772608526176,0.002,1976.7,1976.5,2.86184724]
[1772608527764,0.002,1976.6,1976.5,2.86184724]
[1772608527968,0.002,1976.6,1976.3,2.86184724]
[1772608528177,0.002,1976.6,1976.3,4.12681371]
[1772608528432,0.002,1976.6,1976.4,2.86184724]
[1772608528628,0.002,1976.6,1976.2,2.86184724]
[1772608528833,0.002,1976.8,1976.4,2.86184724]
[1772608530237,0.002,1976.8,1976.5,2.86184724]
[1772608530465,2.85826912,1976.8,1976.5,2.86184724]
[1772608532874,1.26473415,1976.7,1976.5,2.86184724]
[1772608533049,2.85626912,1976.6,1976.1,2.86184724]
[1772608534948,1.26486213,1976.5,1976.1,2.86184724]
[1772608535249,2.85626912,1976.5,1976.1,4.12696356]
[1772608538742,2.85626912,1976.5,1976.2,2.86184724]
[1772608539464,2.85626912,1976.7,1976.2,2.86184724]
[1772608539980,0.002,1976.8,1976.4,2.86184724]
[1772608540178,0.002,1976.7,1976.4,2.86184724]
[1772608540378,2.85826912,1976.7,1976.4,2.86184724]
[1772608540879,3.37042284,1976.7,1976.2,0.001]
[1772608541678,3.37042284,1976.7,1976.2,2.86284724]
[1772608543272,2.85626912,1976.5,1976.2,0.001]
[1772608545375,4.12116859,1976.5,1976.2,0.001]
[1772608545774,2.85626912,1976.4,1976.2,0.001]
[1772608546278,2.85626912,1976.6,1976.2,2.86284724]
[1772608547483,4.12110871,1976.6,1976.2,2.86284724]
[1772608548781,1.26483959,1976.6,1976.2,2.86284724]
[1772608549164,4.05292656,1976.6,1976.2,2.86284724]
[1772608549562,0.002,1976.7,1976.3,2.66808626]
[1772608551350,1.26675488,1976.7,1976.3,2.66808626]
[1772608551548,2.78808697,1976.6,1976.3,2.66808626]
[1772608551948,1.77890374,1976.7,1976.3,2.66808626]
[1772608553283,1.77890374,1976.7,1976.3,2.66908626]
[1772608553686,0.002,1976.6,1976.3,2.66908626]
[1772608554996,2.79008697,1976.6,1976.3,2.66908626]
[1772608555367,0.002,1976.6,1976.3,2.66908626]
[1772608560366,2.79008697,1976.6,1976.3,0.001]
[1772608560582,2.78808697,1976.4,1976.2,0.001]
[1772608561997,2.78808697,1976.5,1976.2,0.001]
[1772608562374,0.002,1976.6,1976.2,2.66908626]
[1772608563916,4.05488786,1976.6,1976.2,2.66908626]
[1772608564609,2.78808697,1976.5,1976.2,0.001]
[1772608564816,2.78808697,1976.2,1975.9,2.66908626]
[1772608565317,2.78808697,1976.4,1976.0,2.66808626]
[1772608566113,2.78808697,1976.3,1975.9,0.001]
[1772608566489,2.78808697,1976.3,1976.2,0.001]
[1772608566694,2.78808697,1976.3,1976.0,0.001]
[1772608567604,2.78808697,1976.1,1975.9,0.001]
[1772608567787,2.097,1976.3,1975.5,2.66808626]
[1772608567788,2.78808697,1975.9,1975.5,2.66808626]
[1772608568100,2.78808697,1975.8,1975.5,2.66808626]
[1772608568505,2.78808697,1975.8,1975.5,3.93358176]
[1772608568704,2.78808697,1976.0,1975.5,1.2654955]
[1772608568906,2.78808697,1976.0,1975.6,2.66808626]
[1772608569101,8.67149578,1976.4,1975.6,2.66808626]
[1772608569102,8.573443,1976.4,1975.6,2.66808626]
[1772608569278,2.78808697,1976.3,1975.6,2.66808626]
[1772608569471,4.05299901,1976.5,1975.8,2.66808626]
[1772608569878,0.002,1976.6,1976.0,2.66808626]
[1772608570073,0.002,1976.6,1976.2,2.66808626]
[1772608572707,0.002,1976.6,1976.1,1.77727188]
[1772608572708,0.002,1976.6,1976.4,2.66808626]
[1772608574304,0.002,1976.7,1976.5,2.66808626]
[1772608574484,0.001,1976.7,1976.4,2.66808626]
[1772608575015,0.001,1976.7,1976.5,2.66808626]
[1772608577307,0.001,1976.7,1976.6,2.66808626]
[1772608578421,0.002,1977.1,1976.6,2.59634473]
[1772608578591,3.90651808,1977.1,1976.6,2.59734473]
[1772608578791,2.64203531,1977.1,1976.6,2.59734473]
[1772608579197,0.002,1977.1,1976.6,2.59734473]
[1772608579404,0.002,1977.1,1976.7,3.86107888]
[1772608579989,0.002,1977.1,1976.8,2.59634473]
[1772608580690,0.002,1977.1,1976.9,2.53515081]
[1772608580890,0.002,1977.4,1977.1,2.53415081]
[1772608581109,3.96001239,1977.4,1977.1,2.53415081]
[1772608581319,2.69372305,1977.1,1976.9,0.001]
[1772608581518,2.69372305,1977.1,1976.6,2.53415081]
[1772608582019,3.20587677,1977.1,1976.6,0.001]
[1772608582815,3.20587677,1977.1,1976.6,2.53515081]
[1772608583015,3.20587677,1977.1,1976.6,2.53415081]
[1772608583525,3.9582492,1977.1,1976.6,3.79894295]
[1772608584504,3.95812338,1977.3,1976.7,2.53515081]
[1772608585016,0.002,1977.4,1976.7,3.04730453]
[1772608585525,0.002,1977.4,1977.2,2.53415081]
[1772608586894,0.002,1977.4,1977.2,2.53515081]
[1772608589007,0.002,1977.4,1977.3,2.53415081]
[1772608589213,0.002,1977.6,1977.3,2.53415081]
[1772608590230,0.002,1977.6,1977.4,2.53515081]
[1772608590414,0.002,1977.6,1977.4,3.79843254]
[1772608590619,0.002,1977.6,1977.4,3.79842961]
[1772608590820,0.002,1977.6,1977.5,2.53415081]
[1772608592040,0.002,1977.6,1977.5,2.53515081]
[1772608592416,0.001,1977.6,1977.5,3.79837331]
[1772608593006,0.002,1977.9,1977.7,2.53415081]
[1772608593331,0.006,1977.9,1977.7,2.53415081]
[1772608594303,0.006,1977.9,1977.5,2.53415081]
[1772608594502,0.006,1977.9,1977.5,3.79836604]
[1772608594833,0.006,1977.9,1977.6,2.53415081]
[1772608597837,0.006,1977.9,1977.6,3.79830678]
[1772608599437,0.006,1977.9,1977.6,2.53415081]
[1772608599644,0.00332033,1977.9,1977.6,2.53415081]
[1772608601737,0.00332033,1977.9,1977.7,2.53415081]
[1772608601949,0.002,1978.1,1977.8,2.53415081]
[1772608602611,0.002,1978.2,1977.7,2.53415081]
[1772608602612,2.69372305,1978.2,1977.7,2.53415081]
[1772608603038,0.002,1978.3,1977.7,2.53415081]
[1772608603816,0.002,1978.3,1977.9,2.53415081]
[1772608604440,2.69572305,1978.3,1977.6,0.001]
[1772608604642,2.69372305,1978.1,1977.6,0.001]
[1772608604844,0.002,1977.9,1977.6,3.79930853]
[1772608605023,0.002,1977.9,1977.7,2.53415081]
[1772608605345,2.69572305,1978.3,1977.7,2.53415081]
[1772608605346,0.002,1978.1,1977.7,2.53415081]
[1772608605843,0.002,1978.1,1977.8,3.79818155]
[1772608606242,0.002,1978.1,1977.8,2.53415081]
[1772608606453,2.69572305,1978.1,1977.6,0.001]
[1772608606619,2.69372305,1978.0,1977.6,0.001]
[1772608608255,1.26396683,1977.9,1977.6,0.001]
[1772608608453,2.68141947,1977.8,1977.6,0.001]
[1772608608845,3.94536223,1978.0,1977.6,0.001]
[1772608609154,2.68141947,1978.0,1977.6,2.72898085]
[1772608609461,3.94533496,1978.0,1977.6,2.72898085]
[1772608609632,0.5,1977.9,1977.6,2.72898085]
[1772608609832,3.94533496,1978.0,1977.6,2.72898085]
[1772608610034,1.26391549,1978.0,1977.6,2.72898085]
[1772608610238,1.26588706,1978.1,1977.6,2.72898085]
[1772608610542,0.002,1978.1,1977.7,2.72798085]
[1772608612463,2.68341947,1978.1,1977.7,2.72798085]
[1772608613058,2.68341947,1978.1,1977.6,0.001]
[1772608614664,1.26396683,1977.9,1977.6,0.001]
[1772608614857,3.9453863,1977.9,1977.6,0.001]
[1772608615031,2.68141947,1977.8,1977.6,0.001]
[1772608615541,2.68241947,1977.7,1977.3,0.001]
[1772608615858,2.68241947,1977.7,1977.3,2.72898085]
[1772608616075,2.68241947,1977.7,1977.3,3.99332152]
[1772608616248,0.001,1977.7,1977.4,2.72798085]
[1772608616572,0.001,1977.7,1977.3,1.26534067]
[1772608616573,0.001,1977.7,1977.6,2.72798085]
[1772608617026,7.74393972,1978.0,1977.6,2.72698085]
[1772608617226,10.42535919,1978.0,1977.6,2.72698085]
[1772608617957,2.68141947,1977.9,1977.7,0.001]
[1772608618163,2.68241947,1977.8,1977.7,0.001]
[1772608618459,2.68241947,1977.8,1977.5,0.001]
[1772608618842,1.26409465,1977.7,1977.5,0.001]
[1772608619057,2.68241947,1977.8,1977.5,0.001]
[1772608619226,0.001,1977.8,1977.5,2.72898085]
[1772608620056,0.001,1977.6,1977.5,2.72898085]
[1772608620258,0.002,1977.9,1977.6,2.72798085]
[1772608620763,0.002,1977.9,1977.7,2.72798085]
[1772608620960,2.68341947,1977.9,1977.5,0.001]
[1772608621143,0.002,1977.9,1977.5,1.26522178]
[1772608623362,0.002,1977.9,1977.5,3.99320263]
[1772608623563,2.68341947,1977.9,1977.5,2.72898085]
[1772608624658,2.68341947,1977.9,1977.5,0.001]
[1772608625965,2.68341947,1977.9,1977.5,2.72898085]
[1772608627442,3.94739301,1977.9,1977.5,2.72898085]
[1772608627648,2.68141947,1977.8,1977.5,0.001]
[1772608627851,3.945505,1977.8,1977.5,0.001]
[1772608628055,2.68141947,1977.7,1977.5,0.001]
[1772608628447,2.68141947,1977.7,1977.1,3.99242297]
[1772608628651,2.68141947,1977.7,1977.1,2.72798085]
[1772608628965,2.68141947,1977.7,1976.9,3.99254526]
[1772608629163,2.68141947,1977.7,1976.9,2.72798085]
[1772608629370,2.68141947,1977.7,1976.9,3.992569]
[1772608629578,2.68141947,1977.7,1976.9,2.72798085]
[1772608630077,2.68141947,1977.5,1976.9,3.99258593]
[1772608630284,2.68141947,1977.5,1977.0,2.72798085]
[1772608630661,0.5,1977.4,1977.0,2.72898085]
[1772608630860,1.26606767,1977.8,1977.0,2.72898085]
[1772608632356,1.26606767,1977.8,1977.2,2.72798085]
[1772608632357,0.002,1977.8,1977.2,2.72798085]
[1772608634282,0.002,1977.8,1977.3,1.26435037]
[1772608634464,0.002,1977.8,1977.4,2.72798085]
[1772608636656,0.002,1977.8,1977.5,3.99220335]
[1772608637486,2.68341947,1977.8,1977.3,2.72798085]
[1772608637656,2.68341947,1977.8,1977.1,3.99241115]
[1772608638585,2.68341947,1977.8,1977.1,1.2644303]
[1772608638790,3.82156862,1977.7,1977.2,2.52171005]
[1772608639483,2.55747397,1977.6,1977.0,2.52271005]
[1772608639685,2.55747397,1977.6,1977.0,0.001]
[1772608639887,2.55747397,1977.5,1977.0,0.001]
[1772608640811,2.54639898,1977.4,1977.0,0.001]
[1772608642592,2.54639898,1977.4,1976.7,0.001]
[1772608642793,2.54639898,1977.2,1976.7,0.001]
[1772608643171,3.8108133,1977.2,1977.1,0.001]
[1772608644564,2.54639898,1977.2,1977.1,0.001]
[1772608644765,1.26441432,1977.2,1977.1,0.001]
[1772608645867,3.8108133,1977.2,1977.1,0.001]
[1772608647291,2.54639898,1977.1,1976.7,0.001]
[1772608648400,2.54639898,1976.8,1976.6,0.001]
[1772608648590,2.54639898,1976.8,1976.4,1.66342922]
[1772608649671,2.54639898,1976.8,1976.4,1.57215868]
[1772608649900,2.54639898,1976.6,1976.4,1.57215868]
[1772608650100,2.54639898,1976.6,1976.3,0.001]
[1772608650283,1.26486213,1976.5,1976.3,0.001]
[1772608650906,2.54639898,1976.4,1976.1,0.001]
[1772608652499,3.81138411,1976.4,1976.1,0.001]
[1772608654094,2.54639898,1976.6,1976.1,2.45381551]
[1772608654293,3.81125686,1976.6,1976.1,2.45381551]
[1772608655211,2.54639898,1976.5,1976.1,0.001]
[1772608655410,2.54639898,1976.5,1976.2,0.001]
[1772608656707,1.26492612,1976.4,1976.2,0.001]
[1772608657026,3.81100518,1976.9,1976.2,2.45381551]
[1772608657482,2.54639898,1976.8,1976.2,2.45381551]
[1772608657883,0.5,1976.7,1976.2,2.45381551]
[1772608658278,3.37551829,1977.1,1976.3,2.45281551]
[1772608658473,3.37551829,1977.1,1976.5,2.45281551]
[1772608658904,3.37551829,1977.1,1976.6,2.45281551]
[1772608659708,2.111,1977.1,1976.6,2.45281551]
[1772608660003,7.7434156,1977.2,1976.6,2.45281551]
[1772608660221,6.479,1977.2,1976.6,2.45281551]
[1772608660704,7.74341788,1977.2,1976.6,2.45281551]
[1772608661094,6.479,1977.2,1976.7,3.71754966]
[1772608661295,3.81079774,1977.3,1976.7,3.71754966]
[1772608661603,2.54639898,1977.1,1976.5,2.45281551]
[1772608664391,3.81090659,1977.1,1976.6,3.71761364]
[1772608665101,2.54639898,1977.1,1976.6,3.71761364]
[1772608665608,3.81088696,1977.1,1976.6,3.71761364]
[1772608666182,2.54639898,1977.0,1976.6,2.45281551]
[1772608666382,3.81099982,1977.0,1976.4,2.45281551]
[1772608666709,2.54639898,1977.0,1976.4,2.45281551]
[1772608667892,2.54839898,1977.0,1976.4,2.45281551]
[1772608668087,0.002,1977.0,1976.4,2.45281551]
[1772608668288,3.88127545,1977.0,1976.4,2.45281551]
[1772608668494,3.88127545,1977.0,1976.5,3.84479749]
[1772608668811,2.61671507,1977.0,1976.5,3.84479749]
[1772608669110,2.61671507,1977.0,1976.6,2.57993536]
[1772608670503,0.002,1977.0,1976.6,3.84468577]
[1772608670702,0.002,1977.0,1976.7,2.57993536]
[1772608672809,0.002,1977.0,1976.8,1.26467017]
[1772608672996,0.002,1977.0,1976.8,3.84460553]
[1772608673431,0.002,1977.1,1976.9,2.57993536]
[1772608675319,0.002,1977.1,1976.8,2.57993536]
[1772608675909,2.61671507,1977.1,1976.6,3.84470256]
[1772608676537,2.61671507,1977.1,1976.7,2.57993536]
[1772608677539,2.61671507,1977.1,1976.4,5.05967798]
[1772608677540,2.61471507,1977.0,1976.4,2.57993536]
[1772608678314,0.002,1977.1,1976.4,2.57993536]
[1772608679663,0.002,1977.1,1976.5,1.26486213]
[1772608679857,0.002,1977.1,1976.6,2.57993536]
[1772608680728,2.61671507,1977.1,1976.5,1.26586213]
[1772608681156,2.61671507,1977.1,1976.5,3.84579749]